fUST/lending_fUST_20250312
["ID","MTS","AMOUNT","RATE_DAILY","PERIOD"]
[355926291,1741716713782,-587.75310648,0.00023835,2]
[355926292,1741716713792,-500.0,0.00023835,2]
[355926293,1741716713801,-500.0,0.00023835,2]
[355926294,1741716713811,-500.0,0.00023835,2]
[355926295,1741716713821,-500.0,0.00023835,2]
[355926296,1741716713831,-445.4258581,0.00023835,2]
[355926297,1741716713841,-500.0,0.00023835,2]
[355926298,1741716713851,-809.72,0.00023835,2]
[355926299,1741716713860,-500.0,0.00023835,2]
[355926300,1741716713869,-1428.98,0.00023835,2]
[355926301,1741716713879,-500.0,0.00023835,2]
[355926302,1741716713889,-500.0,0.00023835,2]
[355926303,1741716713898,-1443.03,0.00023835,2]
[355926304,1741716713908,-500.0,0.00023835,2]
[355926305,1741716713918,-606.78,0.00023835,2]
[355926306,1741716713927,-500.0,0.00023835,2]
[355926307,1741716713938,-500.0,0.00023835,2]
[355926308,1741716713948,-500.0,0.00023835,2]
[355926309,1741716713958,-500.0,0.00023835,2]
[355926310,1741716713968,-500.0,0.00023835,2]
[355926311,1741716713978,-500.0,0.00023835,2]
[355926312,1741716713987,-500.0,0.00023835,2]
[355926313,1741716713997,-500.0,0.00023835,2]
[355926314,1741716714007,-500.0,0.00023835,2]
[355926315,1741716714017,-500.0,0.00023835,2]
[355926316,1741716714027,-500.0,0.00023835,2]
[355926317,1741716714038,-500.0,0.00023835,2]
[355926318,1741716714053,-1247.36,0.00023835,2]
[355926319,1741716714062,-500.0,0.00023835,2]
[355926320,1741716714072,-500.0,0.00023835,2]
[355926321,1741716714081,-500.0,0.00023835,2]
[355926322,1741716714093,-395.0241398,0.00023835,2]
[355926323,1741716714103,-547.86546679,0.00023835,2]
[355926324,1741716714112,-500.0,0.00023835,2]
[355926325,1741716714122,-500.0,0.00023835,2]
[355926326,1741716714132,-501.99,0.00023835,2]
[355926327,1741716714142,-500.0,0.00023835,2]
[355926328,1741716714151,-1321.15,0.00023835,2]
[355926329,1741716714161,-500.0,0.00023835,2]
[355926330,1741716714171,-500.0,0.00023835,2]
[355926331,1741716714181,-500.0,0.00023835,2]
[355926332,1741716714191,-500.0,0.00023835,2]
[355926333,1741716714201,-500.0,0.00023835,2]
[355926334,1741716714211,-1620.73,0.00023835,5]
[355926335,1741716714221,-1350.19,0.00023835,2]
[355926336,1741716714230,-183.65342266,0.00023835,2]
[355926337,1741716714245,-500.0,0.00023835,2]
[355926338,1741716714255,-500.0,0.00023835,2]
[355926339,1741716714265,-500.0,0.00023835,2]
[355926340,1741716714275,-1488.21,0.00023835,2]
[355926341,1741716714285,-500.0,0.00023835,2]
[355926342,1741716714296,-500.0,0.00023835,2]
[355926343,1741716714307,-500.0,0.00023835,2]
[355926344,1741716714324,-500.0,0.00023835,2]
[355926345,1741716714335,-500.0,0.00023835,2]
[355926346,1741716714568,-184.66940891,0.00023835,2]
[355926347,1741716714581,-500.0,0.00023835,2]
[355926348,1741716714592,-1803.96,0.00023835,2]
[355926349,1741716714602,-500.0,0.00023835,2]
[355926350,1741716714613,-500.0,0.00023835,2]
[355926351,1741716714623,-500.0,0.00023835,2]
[355926352,1741716714633,-500.0,0.00023835,2]
[355926353,1741716714643,-500.0,0.00023835,2]
[355926354,1741716714653,-500.0,0.00023835,2]
[355926355,1741716714663,-500.0,0.00023835,2]
[355926356,1741716714674,-500.0,0.00023835,2]
[355926357,1741716714685,-556.55492448,0.00023835,2]
[355926358,1741716714695,-500.0,0.00023835,2]
[355926359,1741716714706,-657.25,0.00023835,2]
[355926360,1741716714716,-522.46647427,0.00023835,2]
[355926361,1741716714725,-788.64,0.00023835,2]
[355926362,1741716714735,-857.78,0.00023835,2]
[355926363,1741716714745,-500.0,0.00023835,2]
[355926364,1741716714756,-444.69470341,0.00023835,2]
[355926365,1741716714765,-500.0,0.00023835,2]
[355926366,1741716714775,-2304.11,0.00023835,2]
[355926367,1741716714785,-520.38657394,0.00023835,2]
[355926368,1741716714795,-500.0,0.00023835,2]
[355926369,1741716714805,-3573.38,0.00023835,2]
[355926370,1741716714822,-2654.41,0.00023835,2]
[355926371,1741716714832,-912.54,0.00023835,2]
[355926372,1741716714842,-627.59,0.00023835,2]
[355926373,1741716714851,-1747.6,0.00023835,2]
[355926374,1741716714860,-500.0,0.00023835,2]
[355926375,1741716714870,-574.19,0.00023835,2]
[355926376,1741716714880,-500.0,0.00023835,2]
[355926377,1741716714889,-500.0,0.00023835,2]
[355926378,1741716714899,-617.45,0.00023835,2]
[355926379,1741716714908,-500.0,0.00023835,2]
[355926380,1741716714917,-500.0,0.00023835,2]
[355926381,1741716714927,-512.1,0.00023835,2]
[355926382,1741716714937,-500.0,0.00023835,2]
[355926383,1741716714946,-500.0,0.00023835,2]
[355926384,1741716714956,-1624.83,0.00023835,2]
[355926385,1741716714966,-500.0,0.00023835,2]
[355926386,1741716714975,-500.0,0.00023835,2]
[355926387,1741716714985,-1388.31,0.00023835,2]
[355926388,1741716714995,-500.0,0.00023835,2]
[355926389,1741716715005,-500.0,0.00023835,2]
[355926390,1741716715014,-500.0,0.00023835,2]
[355926391,1741716715023,-500.0,0.00023835,2]
[355926392,1741716715033,-2527.61,0.00023835,2]
[355926393,1741716715043,-500.0,0.00023835,2]
[355926394,1741716715056,-1505.11,0.00023835,2]
[355926395,1741716715072,-1159.19,0.00023835,2]
[355926396,1741716715082,-500.0,0.00023835,2]
[355926397,1741716715092,-500.0,0.00023835,2]
[355926398,1741716715102,-500.0,0.00023835,2]
[355926399,1741716715111,-500.0,0.00023835,2]
[355926400,1741716715121,-1771.79,0.00023835,2]
[355926401,1741716715131,-2594.12,0.00023835,2]
[355926402,1741716715140,-591.12906812,0.00023835,2]
[355926403,1741716715150,-500.0,0.00023835,2]
[355926404,1741716715160,-564.98,0.00023835,2]
[355926405,1741716715169,-741.15,0.00023835,2]
[355926406,1741716715179,-514.01,0.00023835,2]
[355926407,1741716715188,-500.0,0.00023835,2]
[355926408,1741716715198,-500.0,0.00023835,2]
[355926409,1741716715207,-500.0,0.00023835,2]
[355926410,1741716715218,-500.0,0.00023835,2]
[355926411,1741716715227,-773.02,0.00023835,2]
[355926412,1741716715237,-500.0,0.00023835,2]
[355926413,1741716715246,-783.0,0.00023835,2]
[355926414,1741716715256,-500.0,0.00023835,2]
[355926415,1741716715265,-500.0,0.00023835,2]
[355926416,1741716715274,-500.0,0.00023835,2]
[355926417,1741716715283,-1890.4,0.00023835,2]
[355926418,1741716715293,-500.0,0.00023835,2]
[355926419,1741716715303,-500.0,0.00023835,2]
[355926420,1741716715317,-669.95,0.00023835,2]
[355926421,1741716715327,-500.0,0.00023835,2]
[355926422,1741716715336,-647.88,0.00023835,2]
[355926423,1741716715346,-1680.4,0.00023835,2]
[355926424,1741716715356,-500.0,0.00023835,2]
[355926425,1741716715366,-1121.75,0.00023835,2]
[355926426,1741716715376,-523.3,0.00023835,2]
[355926427,1741716715386,-500.0,0.00023835,2]
[355926428,1741716715396,-647.83,0.00023835,2]
[355926429,1741716715406,-500.0,0.00023835,2]
[355926430,1741716715415,-1614.37,0.00023835,2]
[355926431,1741716715425,-500.0,0.00023835,2]
[355926432,1741716715435,-500.0,0.00023835,2]
[355926433,1741716715444,-607.02,0.00023835,2]
[355926434,1741716715454,-800.76,0.00023835,2]
[355926435,1741716715464,-1280.44,0.00023835,2]
[355926436,1741716715473,-500.0,0.00023835,2]
[355926437,1741716715483,-500.0,0.00023835,2]
[355926438,1741716715492,-555.5,0.00023835,2]
[355926439,1741716715502,-500.0,0.00023835,2]
[355926440,1741716715512,-500.0,0.00023835,2]
[355926441,1741716715521,-500.0,0.00023835,2]
[355926442,1741716715531,-721.26,0.00023835,2]
[355926443,1741716715541,-1615.29,0.00023835,2]
[355926444,1741716715550,-500.0,0.00023835,2]
[355926445,1741716715563,-500.0,0.00023835,2]
[355926446,1741716715573,-500.0,0.00023835,2]
[355926447,1741716715582,-500.0,0.00023835,2]
[355926448,1741716715592,-500.0,0.00023835,2]
[355926449,1741716715601,-1063.8,0.00023835,2]
[355926450,1741716715611,-993.16,0.00023835,2]
[355926451,1741716715621,-500.0,0.00023835,2]
[355926452,1741716715631,-2377.08,0.00023835,2]
[355926453,1741716715641,-500.0,0.00023835,2]
[355926454,1741716715651,-500.0,0.00023835,2]
[355926455,1741716715661,-500.0,0.00023835,2]
[355926456,1741716715670,-1689.79,0.00023835,2]
[355926457,1741716715680,-1182.74,0.00023835,2]
[355926458,1741716715690,-500.0,0.00023835,2]
[355926459,1741716715700,-500.0,0.00023835,2]
[355926460,1741716715710,-500.0,0.00023835,2]
[355926461,1741716715720,-500.0,0.00023835,2]
[355926462,1741716715730,-2662.49,0.00023835,2]
[355926463,1741716715739,-1204.27,0.00023835,2]
[355926464,1741716715749,-760.44,0.00023835,2]
[355926465,1741716715759,-717.54,0.00023835,2]
[355926466,1741716715769,-500.0,0.00023835,2]
[355926467,1741716715778,-500.0,0.00023835,2]
[355926468,1741716715788,-500.0,0.00023835,2]
[355926469,1741716715798,-500.0,0.00023835,2]
[355926470,1741716715808,-1467.71,0.00023835,2]
[355926471,1741716715821,-500.0,0.00023835,2]
[355926472,1741716715831,-2537.49,0.00023835,2]
[355926473,1741716715842,-500.0,0.00023835,2]
[355926474,1741716715852,-500.0,0.00023835,2]
[355926475,1741716715862,-500.0,0.00023835,2]
[355926476,1741716715871,-500.0,0.00023835,2]
[355926477,1741716715881,-1701.43,0.00023835,2]
[355926478,1741716715891,-500.0,0.00023835,2]
[355926479,1741716715901,-500.0,0.00023835,2]
[355926480,1741716715911,-1155.99,0.00023835,2]
[355926481,1741716715920,-500.0,0.00023835,2]
[355926482,1741716715930,-500.0,0.00023835,2]
[355926483,1741716715940,-644.13,0.00023835,2]
[355926484,1741716715949,-500.0,0.00023835,2]
[355926485,1741716715959,-834.21,0.00023835,2]
[355926486,1741716715969,-798.51,0.00023835,2]
[355926487,1741716715979,-500.0,0.00023835,2]
[355926488,1741716715988,-500.0,0.00023835,2]
[355926489,1741716715998,-908.5,0.00023835,2]
[355926490,1741716716008,-500.0,0.00023835,2]
[355926491,1741716716018,-500.0,0.00023835,2]
[355926492,1741716716027,-572.05,0.00023835,2]
[355926493,1741716716038,-500.0,0.00023835,2]
[355926494,1741716716050,-1740.21,0.00023835,2]
[355926495,1741716716059,-1291.37,0.00023835,2]
[355926496,1741716716071,-500.0,0.00023835,2]
[355926497,1741716716082,-1766.21,0.00023835,2]
[355926498,1741716716091,-682.17,0.00023835,2]
[355926499,1741716716100,-500.0,0.00023835,2]
[355926500,1741716716110,-893.83,0.00023835,2]
[355926501,1741716716120,-500.0,0.00023835,2]
[355926502,1741716716130,-500.0,0.00023835,2]
[355926503,1741716716140,-500.0,0.00023835,2]
[355926504,1741716716150,-500.0,0.00023835,2]
[355926505,1741716716159,-500.0,0.00023835,2]
[355926506,1741716716169,-2321.3,0.00023835,2]
[355926507,1741716716179,-500.0,0.00023835,2]
[355926508,1741716716191,-500.0,0.00023835,2]
[355926509,1741716716202,-1549.95,0.00023835,2]
[355926510,1741716716212,-2086.15,0.00023835,2]
[355926511,1741716716222,-500.0,0.00023835,2]
[355926512,1741716716232,-500.0,0.00023835,2]
[355926513,1741716716242,-1804.17,0.00023835,2]
[355926514,1741716716252,-931.4,0.00023835,2]
[355926515,1741716716262,-500.0,0.00023835,2]
[355926516,1741716716271,-633.43259123,0.00023835,2]
[355926517,1741716716282,-1203.57,0.00023835,2]
[355926518,1741716716291,-936.91,0.00023835,2]
[355926519,1741716716301,-1955.81,0.00023835,2]
[355926520,1741716716312,-520.20293977,0.00023835,2]
[355926521,1741716716322,-1167.97,0.00023835,2]
[355926522,1741716716332,-500.0,0.00023835,2]
[355926523,1741716716341,-500.0,0.00023835,2]
[355926524,1741716716351,-500.0,0.00023835,2]
[355926525,1741716716373,-500.0,0.00023835,2]
[355926526,1741716716384,-3441.63,0.00023835,2]
[355926527,1741716716394,-500.0,0.00023835,2]
[355926528,1741716716403,-500.0,0.00023835,2]
[355926529,1741716716413,-500.0,0.00023835,2]
[355926530,1741716716423,-500.0,0.00023835,2]
[355926531,1741716716433,-500.0,0.00023835,2]
[355926532,1741716716442,-1264.65,0.00023835,2]
[355926533,1741716716452,-1028.23,0.00023835,2]
[355926534,1741716716462,-500.0,0.00023835,2]
[355926535,1741716716471,-1565.71,0.00023835,2]
[355926536,1741716716481,-500.0,0.00023835,2]
[355926537,1741716716491,-500.0,0.00023835,2]
[355926538,1741716716501,-500.0,0.00023835,2]
[355926539,1741716716510,-1625.43,0.00023835,2]
[355926540,1741716716861,-1803.2,0.00023835,2]
[355926541,1741716716872,-472.67782567,0.00023835,2]
[355926542,1741716716883,-500.0,0.00023835,2]
[355926543,1741716716893,-500.0,0.00023835,2]
[355926544,1741716716903,-568.50989311,0.00023835,2]
[355926545,1741716716914,-500.0,0.00023835,2]
[355926546,1741716716924,-500.0,0.00023835,2]
[355926547,1741716716934,-500.0,0.00023835,2]
[355926548,1741716716944,-1045.75,0.00023835,2]
[355926549,1741716716954,-500.0,0.00023835,2]
[355926550,1741716716963,-518.23089913,0.00023835,2]
[355926551,1741716716973,-791.16,0.00023835,2]
[355926552,1741716716983,-500.0,0.00023835,2]
[355926553,1741716716993,-500.0,0.00023835,2]
[355926554,1741716717002,-500.0,0.00023835,2]
[355926555,1741716717012,-500.0,0.00023835,2]
[355926556,1741716717022,-500.0,0.00023835,2]
[355926557,1741716717032,-500.0,0.00023835,2]
[355926558,1741716717042,-500.0,0.00023835,2]
[355926559,1741716717055,-500.0,0.00023835,2]
[355926560,1741716717069,-500.0,0.00023835,2]
[355926561,1741716717080,-500.0,0.00023835,2]
[355926562,1741716717091,-500.0,0.00023835,2]
[355926563,1741716717102,-500.0,0.00023835,2]
[355926564,1741716717112,-500.0,0.00023835,2]
[355926565,1741716717125,-500.0,0.00023835,2]
[355926566,1741716717135,-500.0,0.00023835,2]
[355926567,1741716717146,-500.0,0.00023835,2]
[355926568,1741716717164,-500.0,0.00023835,2]
[355926569,1741716717174,-500.0,0.00023835,2]
[355926570,1741716717185,-500.0,0.00023835,2]
[355926571,1741716717196,-500.0,0.00023835,2]
[355926572,1741716717207,-500.0,0.00023835,2]
[355926573,1741716717217,-500.0,0.00023835,2]
[355926574,1741716717228,-1070.64,0.00023835,2]
[355926575,1741716717238,-939.85,0.00023835,2]
[355926576,1741716717249,-500.0,0.00023835,2]
[355926577,1741716717259,-500.0,0.00023835,2]
[355926578,1741716717270,-700.06,0.00023835,2]
[355926579,1741716717282,-500.0,0.00023835,2]
[355926580,1741716717292,-500.0,0.00023835,2]
[355926581,1741716717303,-500.0,0.00023835,2]
[355926582,1741716717315,-500.0,0.00023835,2]
[355926583,1741716717325,-500.0,0.00023835,2]
[355926584,1741716717335,-500.0,0.00023835,2]
[355926585,1741716717345,-914.13,0.00023835,2]
[355926586,1741716717355,-1543.09,0.00023835,2]
[355926587,1741716717365,-1087.78,0.00023835,2]
[355926588,1741716717375,-500.0,0.00023835,2]
[355926589,1741716717385,-500.0,0.00023835,2]
[355926590,1741716717395,-500.0,0.00023835,2]
[355926591,1741716717405,-525.06,0.00023835,2]
[355926592,1741716717415,-3025.57,0.00023835,2]
[355926593,1741716717425,-508.7357398,0.00023835,2]
[355926594,1741716717435,-500.0,0.00023835,2]
[355926595,1741716717445,-500.0,0.00023835,2]
[355926596,1741716717454,-1013.34,0.00023835,2]
[355926597,1741716717464,-500.0,0.00023835,2]
[355926598,1741716717474,-500.0,0.00023835,2]
[355926599,1741716717484,-500.0,0.00023835,2]
[355926600,1741716717494,-500.0,0.00023835,2]
[355926601,1741716717504,-2686.03,0.00023835,2]
[355926602,1741716717514,-500.0,0.00023835,2]
[355926603,1741716717524,-1595.33,0.00023835,2]
[355926604,1741716717534,-500.0,0.00023835,2]
[355926605,1741716717543,-500.0,0.00023835,2]
[355926606,1741716717553,-500.0,0.00023835,2]
[355926607,1741716717566,-2451.3,0.00023835,2]
[355926608,1741716717576,-1447.92,0.00023835,2]
[355926609,1741716717585,-500.0,0.00023835,2]
[355926610,1741716717595,-500.0,0.00023835,2]
[355926611,1741716717605,-518.42073123,0.00023835,2]
[355926612,1741716717615,-2298.88,0.00023835,2]
[355926613,1741716717625,-500.0,0.00023835,2]
[355926614,1741716717635,-500.0,0.00023835,2]
[355926615,1741716717645,-500.0,0.00023835,2]
[355926616,1741716717655,-2808.13,0.00023835,2]
[355926617,1741716717666,-500.0,0.00023835,2]
[355926618,1741716717676,-200.0,0.00023835,2]
[355926619,1741716717686,-500.0,0.00023835,2]
[355926620,1741716717696,-500.0,0.00023835,2]
[355926621,1741716717706,-532.30599148,0.00023835,2]
[355926622,1741716717717,-2473.59,0.00023835,2]
[355926623,1741716717727,-174.42965169,0.00023835,2]
[355926624,1741716717737,-500.0,0.00023835,2]
[355926625,1741716717748,-500.0,0.00023835,2]
[355926626,1741716717758,-500.0,0.00023835,2]
[355926627,1741716717768,-500.0,0.00023835,2]
[355926628,1741716717778,-500.0,0.00023835,2]
[355926629,1741716717788,-500.0,0.00023835,2]
[355926630,1741716717798,-500.0,0.00023835,2]
[355926631,1741716717808,-780.35,0.00023835,2]
[355926632,1741716717820,-2284.96,0.00023835,2]
[355926633,1741716717830,-1184.9,0.00023835,2]
[355926634,1741716717840,-500.0,0.00023835,2]
[355926635,1741716717850,-1614.31,0.00023835,2]
[355926636,1741716717860,-500.0,0.00023835,2]
[355926637,1741716717871,-896.04,0.00023835,2]
[355926638,1741716717880,-500.0,0.00023835,2]
[355926639,1741716717890,-825.42,0.00023835,2]
[355926640,1741716717900,-445.51444223,0.00023835,2]
[355926641,1741716717910,-612.17,0.00023835,2]
[355926642,1741716717920,-500.0,0.00023835,2]
[355926643,1741716717930,-500.0,0.00023835,2]
[355926644,1741716717940,-1857.45,0.00023835,2]
[355926645,1741716717950,-500.0,0.00023835,2]
[355926646,1741716717960,-1429.9,0.00023835,2]
[355926647,1741716717970,-9645.49,0.00023835,2]
[355926648,1741716717980,-500.0,0.00023835,2]
[355926649,1741716717990,-899.98,0.00023835,2]
[355926650,1741716718000,-500.0,0.00023835,2]
[355926651,1741716718011,-702.93821054,0.00023835,2]
[355926652,1741716718021,-500.0,0.00023835,2]
[355926653,1741716718032,-7102.33,0.00023835,2]
[355926654,1741716718049,-500.0,0.00023835,2]
[355926655,1741716718071,-500.0,0.00023835,2]
[355926656,1741716718082,-500.0,0.00023835,2]
[355926657,1741716718093,-11976.4,0.00023835,2]
[355926658,1741716718103,-1284.87,0.00023835,2]
[355926659,1741716718113,-855.17,0.00023835,2]
[355926660,1741716718124,-500.0,0.00023835,2]
[355926661,1741716718133,-500.0,0.00023835,2]
[355926662,1741716718143,-500.0,0.00023835,2]
[355926663,1741716718153,-500.0,0.00023835,2]
[355926664,1741716718163,-23367.44,0.00023835,2]
[355926665,1741716718174,-500.0,0.00023835,2]
[355926666,1741716718184,-500.0,0.00023835,2]
[355926667,1741716718194,-500.0,0.00023835,2]
[355926668,1741716718204,-500.0,0.00023835,2]
[355926669,1741716718214,-669.93,0.00023835,2]
[355926670,1741716718224,-500.0,0.00023835,2]
[355926671,1741716718234,-500.0,0.00023835,2]
[355926672,1741716718243,-1907.14,0.00023835,2]
[355926673,1741716718253,-500.0,0.00023835,2]
[355926674,1741716718263,-500.0,0.00023835,2]
[355926675,1741716718273,-2813.74,0.00023835,2]
[355926676,1741716718283,-500.0,0.00023835,2]
[355926677,1741716718293,-562.82,0.00023835,2]
[355926678,1741716718303,-500.0,0.00023835,2]
[355926679,1741716718314,-1222.25,0.00023835,2]
[355926680,1741716718324,-514.05,0.00023835,2]
[355926681,1741716718334,-2182.16,0.00023835,2]
[355926682,1741716718344,-500.0,0.00023835,2]
[355926683,1741716718354,-500.0,0.00023835,2]
[355926684,1741716718364,-573.01,0.00023835,2]
[355926685,1741716718374,-317.64573584,0.00023835,2]
[355926686,1741716718383,-4470.27,0.00023835,2]
[355926687,1741716718393,-1342.73,0.00023835,2]
[355926688,1741716718403,-500.0,0.00023835,2]
[355926689,1741716718412,-914.18,0.00023835,2]
[355926690,1741716718422,-500.0,0.00023835,2]
[355926691,1741716718432,-500.0,0.00023835,2]
[355926692,1741716718442,-578.89,0.00023835,2]
[355926693,1741716718452,-500.0,0.00023835,2]
[355926694,1741716718462,-500.0,0.00023835,2]
[355926695,1741716718472,-500.0,0.00023835,2]
[355926696,1741716718481,-989.87,0.00023835,2]
[355926697,1741716718491,-934.23,0.00023835,2]
[355926698,1741716718501,-885.21,0.00023835,2]
[355926699,1741716718511,-2800.07,0.00023835,2]
[355926700,1741716718522,-1444.17,0.00023835,2]
[355926701,1741716718532,-4730.12,0.00023835,2]
[355926702,1741716718542,-500.0,0.00023835,2]
[355926703,1741716718552,-3755.9,0.00023835,2]
[355926704,1741716718563,-313.29349222,0.00023835,2]
[355926705,1741716718572,-500.0,0.00023835,2]
[355926706,1741716718583,-9446.84,0.00023835,2]
[355926707,1741716718592,-500.0,0.00023835,2]
[355926708,1741716718602,-2814.21,0.00023835,2]
[355926709,1741716718613,-3691.0,0.00023835,2]
[355926710,1741716718623,-1202.86,0.00023835,2]
[355926711,1741716718632,-500.0,0.00023835,2]
[355926712,1741716718643,-587.88,0.00023835,2]
[355926713,1741716718652,-232.14593348,0.00023835,2]
[355926714,1741716718662,-869.52,0.00023835,2]
[355926715,1741716718672,-500.0,0.00023835,2]
[355926716,1741716718682,-482.68268549,0.00023835,2]
[355926717,1741716718692,-500.0,0.00023835,2]
[355926718,1741716718701,-3579.07,0.00023835,2]
[355926719,1741716718712,-299174.99,0.00023835,2]
[355926720,1741716718722,-2945.67,0.00023835,2]
[355926721,1741716718732,-500.0,0.00023835,2]
[355926722,1741716718742,-880.17,0.00023835,2]
[355926723,1741716718752,-500.0,0.00023835,2]
[355926724,1741716718762,-2983.87,0.00023835,2]
[355926725,1741716718772,-500.0,0.00023835,2]
[355926726,1741716718782,-500.0,0.00023835,2]
[355926727,1741716718791,-11349.89,0.00023835,2]
[355926728,1741716718801,-577.40701649,0.00023835,2]
[355926729,1741716718812,-500.0,0.00023835,2]
[355926730,1741716718822,-500.0,0.00023835,2]
[355926731,1741716718831,-500.0,0.00023835,2]
[355926732,1741716718841,-811.32,0.00023835,2]
[355926733,1741716718851,-500.0,0.00023835,2]
[355926734,1741716718861,-500.0,0.00023835,2]
[355926735,1741716718871,-500.0,0.00023835,2]
[355926736,1741716718881,-6411.78,0.00023835,2]
[355926737,1741716718891,-1407.74,0.00023835,2]
[355926738,1741716718901,-500.0,0.00023835,2]
[355926739,1741716718910,-500.0,0.00023835,2]
[355926740,1741716718920,-2234.33,0.00023835,2]
[355926741,1741716718929,-1914.64,0.00023835,2]
[355926742,1741716718939,-500.0,0.00023835,2]
[355926743,1741716718948,-500.0,0.00023835,2]
[355926744,1741716718958,-516.47,0.00023835,2]
[355926745,1741716718968,-1299.12,0.00023835,2]
[355926746,1741716718977,-2072.12,0.00023835,2]
[355926747,1741716718987,-834.53,0.00023835,2]
[355926748,1741716718997,-3763.62,0.00023835,2]
[355926749,1741716719007,-500.0,0.00023835,2]
[355926750,1741716719016,-551.18,0.00023835,2]
[355926751,1741716719026,-3522.52,0.00023835,2]
[355926752,1741716719036,-500.0,0.00023835,2]
[355926753,1741716719046,-500.0,0.00023835,2]
[355926754,1741716719059,-658.55,0.00023835,2]
[355926755,1741716719070,-500.0,0.00023835,2]
[355926756,1741716719080,-225.26519919,0.00023835,2]
[355926757,1741716719090,-500.0,0.00023835,2]
[355926758,1741716719100,-583.5,0.00023835,2]
[355926759,1741716719109,-1515.05,0.00023835,2]
[355926760,1741716719119,-13694.52,0.00023835,2]
[355926761,1741716719129,-500.0,0.00023835,2]
[355926762,1741716719139,-2033.78,0.00023835,2]
[355926763,1741716719148,-2419.19,0.00023835,2]
[355926764,1741716719158,-1260.46,0.00023835,2]
[355926765,1741716719167,-500.0,0.00023835,2]
[355926766,1741716719177,-1096.01,0.00023835,7]
[355926767,1741716719186,-609.45951741,0.00023835,2]
[355926768,1741716719196,-947.72,0.00023835,2]
[355926769,1741716719206,-551.45833088,0.00023835,2]
[355926770,1741716719215,-567.06,0.00023835,2]
[355926771,1741716719225,-967.47,0.00023835,2]
[355926772,1741716719235,-1213.75,0.00023835,2]
[355926773,1741716719244,-2759.01,0.00023835,2]
[355926774,1741716719253,-1574.32,0.00023835,2]
[355926775,1741716719263,-500.0,0.00023835,2]
[355926776,1741716719272,-500.0,0.00023835,2]
[355926777,1741716719282,-500.0,0.00023835,2]
[355926778,1741716719292,-1492.0,0.00023835,2]
[355926779,1741716719302,-2494.97,0.00023835,2]
[355926780,1741716719314,-500.0,0.00023835,2]
[355926781,1741716719324,-500.0,0.00023835,2]
[355926782,1741716719334,-10869.8,0.00023835,2]
[355926783,1741716719344,-500.0,0.00023835,2]
[355926784,1741716719354,-633.00564381,0.00023835,2]
[355926785,1741716719364,-724.88,0.00023835,2]
[355926786,1741716719373,-500.0,0.00023835,2]
[355926787,1741716719383,-500.0,0.00023835,2]
[355926788,1741716719393,-500.0,0.00023835,2]
[355926789,1741716719403,-537.03,0.00023835,2]
[355926790,1741716719412,-500.0,0.00023835,2]